fUSD/lending_fUSD_20251129
["ID","MTS","AMOUNT","RATE_DAILY","PERIOD"]
[395098684,1764425443750,-1193.0,0.00020477,2]
[395098685,1764425443760,-909.0,0.00020477,2]
[395098686,1764425443769,-2718.0,0.00020477,2]
[395098687,1764425443780,-4997.715,0.00020477,2]
[395098688,1764425443790,-500.0,0.00020702,2]
[395098689,1764425443801,-10082.33670861,0.00020761,2]
[395098690,1764425443810,-264.71572206,0.00020783,2]
[395098691,1764425443820,-168.3888056,0.00020822,2]
[395098692,1764425443830,-1000.0,0.0002087,2]
[395098693,1764425443841,-500.0,0.0002087,2]
[395098694,1764425443850,-984.01128772,0.00020878,2]
[395098695,1764425443860,-328.17073037,0.0002097,14]
[395098696,1764425443870,-1000.0,0.00021,2]
[395098697,1764425443880,-350.0,0.00021,2]
[395098698,1764425443889,-201.88,0.00021026,2]
[395098699,1764425443899,-500.0,0.00021034,2]
[395098700,1764425443910,-500.0,0.00021038,2]
[395098701,1764425443920,-500.0,0.00021168,2]
[395098702,1764425443930,-2000.0,0.000212,2]
[395098703,1764425443940,-416.484381,0.000212,2]
[395098704,1764425443950,-416.484381,0.000212,2]
[395098705,1764425443960,-416.484381,0.000212,2]
[395098706,1764425443970,-416.484381,0.000212,2]
[395098707,1764425443979,-238.422932,0.000212,2]
[395098708,1764425443989,-151.0,0.000212,2]
[395098709,1764425443998,-238.422932,0.000212,2]
[395098710,1764425444009,-151.0,0.000212,2]
[395098711,1764425444019,-151.0,0.000212,2]
[395098712,1764425444028,-238.422932,0.000212,2]
[395098713,1764425444038,-269.821468,0.000212,2]
[395098714,1764425444048,-238.422932,0.000212,2]
[395098715,1764425444057,-151.0,0.000212,2]
[395098716,1764425444067,-151.0,0.000212,2]
[395098717,1764425444077,-500.0,0.00021346,2]
[395098718,1764425444087,-178.91,0.00021361,2]
[395098719,1764425444097,-174.61919141,0.0002137,2]
[395098720,1764425444107,-500.0,0.00021657,2]
[395098721,1764425444117,-500.0,0.00021657,2]
[395098722,1764425444127,-500.0,0.00021657,2]
[395098723,1764425444138,-500.0,0.00021657,2]
[395098724,1764425444148,-500.0,0.00021657,2]
[395098725,1764425444158,-500.0,0.00021657,2]
[395098726,1764425444167,-500.0,0.00021657,2]
[395098727,1764425444177,-500.0,0.00021657,2]
[395098728,1764425444187,-500.0,0.00021657,2]
[395098729,1764425444197,-500.0,0.00021657,2]
[395098730,1764425444206,-500.0,0.00021657,2]
[395098731,1764425444215,-500.0,0.00021657,2]
[395098732,1764425444224,-500.0,0.00021657,2]
[395098733,1764425444234,-500.0,0.00021657,2]
[395098734,1764425444244,-500.0,0.00021657,2]
[395098735,1764425444254,-500.0,0.00021657,2]
[395098736,1764425444264,-500.0,0.00021657,2]
[395098737,1764425444274,-500.0,0.00021657,2]
[395098738,1764425444284,-500.0,0.00021657,2]
[395098739,1764425444294,-500.0,0.00021657,2]
[395098740,1764425444303,-500.0,0.00021657,2]
[395098741,1764425444313,-500.0,0.00021657,2]
[395098742,1764425444323,-500.0,0.00021657,2]
[395098743,1764425444332,-500.0,0.00021657,2]
[395098744,1764425444342,-500.0,0.00021657,2]
[395098745,1764425444351,-500.0,0.00021657,2]
[395098746,1764425444360,-500.0,0.00021657,2]
[395098747,1764425444370,-500.0,0.00021657,2]
[395098748,1764425444380,-500.0,0.00021657,2]
[395098749,1764425444390,-500.0,0.00021657,2]
[395098750,1764425444400,-500.0,0.00021657,2]
[395098751,1764425444411,-500.0,0.00021657,2]
[395098752,1764425444422,-500.0,0.00021657,2]
[395098753,1764425444432,-500.0,0.00021657,2]
[395098754,1764425444441,-500.0,0.00021657,2]
[395098755,1764425444451,-500.0,0.00021657,2]
[395098756,1764425444460,-500.0,0.00021657,2]
[395098757,1764425444469,-500.0,0.00021657,2]
[395098758,1764425444479,-500.0,0.00021657,2]
[395098759,1764425444489,-512.0,0.00021657,2]
[395098760,1764425444499,-1600.0,0.00021657,2]
[395098761,1764425444509,-328.17073037,0.00021658,15]
[395098762,1764425444519,-346.92554585,0.00021665,2]
[395098763,1764425444530,-309.29654756,0.00021665,2]
[395098764,1764425444541,-621.78829552,0.00021667,2]
[395098765,1764425444551,-500.0,0.00021689,2]
[395098766,1764425444561,-500.0,0.00021717,2]
[395098767,1764425444574,-500.0,0.00021726,2]
[395098768,1764425444584,-5000.0,0.00021918,2]
[395098769,1764425444594,-181.08010149,0.00021918,2]
[395098770,1764425444604,-1000.0,0.0002197,2]
[395098771,1764425444615,-500.0,0.0002197,2]
[395098772,1764425444624,-1000.0,0.0002197,2]
[395098773,1764425444635,-500.0,0.0002197,2]
[395098774,1764425444644,-1000.0,0.0002197,2]
[395098775,1764425444654,-500.0,0.0002197,2]
[395098776,1764425444664,-151.0,0.0002197,2]
[395098777,1764425444674,-151.0,0.0002197,2]
[395098778,1764425444684,-151.0,0.0002197,2]
[395098779,1764425444694,-151.0,0.0002197,2]
[395098780,1764425444704,-151.0,0.0002197,2]
[395098781,1764425444715,-151.0,0.0002197,2]
[395098782,1764425444724,-151.0,0.0002197,2]
[395098783,1764425444733,-151.0,0.0002197,2]
[395098784,1764425444743,-151.0,0.0002197,2]
[395098785,1764425444752,-156.596061,0.0002197,2]
[395098786,1764425444762,-151.0,0.0002197,2]
[395098787,1764425444771,-394.071041,0.0002197,2]
[395098788,1764425444780,-394.071041,0.0002197,2]
[395098789,1764425444790,-151.0,0.0002197,2]
[395098790,1764425444800,-174.530329,0.0002197,2]
[395098791,1764425444810,-394.071041,0.0002197,2]
[395098792,1764425444819,-151.0,0.0002197,2]
[395098793,1764425444829,-174.530329,0.0002197,2]
[395098794,1764425444838,-394.071041,0.0002197,2]
[395098795,1764425444848,-174.530329,0.0002197,2]
[395098796,1764425444857,-174.530329,0.0002197,2]
[395098797,1764425444866,-151.0,0.0002197,2]
[395098798,1764425444876,-151.0,0.0002197,2]
[395098799,1764425444885,-151.0,0.0002197,2]
[395098800,1764425444894,-151.0,0.0002197,2]
[395098801,1764425444903,-151.0,0.0002197,2]
[395098802,1764425444913,-151.0,0.0002197,2]
[395098803,1764425444922,-151.0,0.0002197,2]
[395098804,1764425444932,-500.0,0.00022,8]
[395098805,1764425444941,-500.0,0.00022,8]
[395098806,1764425444950,-500.0,0.00022,8]
[395098807,1764425444960,-500.0,0.00022,8]
[395098808,1764425444969,-500.0,0.00022,8]
[395098809,1764425444978,-518.68975976,0.00022,8]
[395098810,1764425444988,-500.0,0.00022,8]
[395098811,1764425444997,-500.0,0.00022,8]
[395098812,1764425445006,-500.0,0.00022,8]
[395098813,1764425445015,-500.0,0.00022,8]
[395098814,1764425445024,-500.0,0.00022,8]
[395098815,1764425445033,-500.0,0.00022,8]
[395098816,1764425445043,-500.0,0.00022,8]
[395098817,1764425445052,-500.0,0.00022,8]
[395098818,1764425445061,-153.0,0.00022,2]
[395098819,1764425445071,-229.15,0.00022,2]
[395098820,1764425445080,-290.47845738,0.00022039,2]
[395098821,1764425445090,-300.0,0.00022039,2]
[395098822,1764425445099,-150.0,0.0002204,2]
[395098823,1764425445108,-2669.86121684,0.0002204,2]
[395098824,1764425445118,-150.0,0.0002204,2]
[395098825,1764425445127,-3818.51566356,0.0002204,2]
[395098826,1764425445136,-150.0,0.0002204,2]
[395098827,1764425445145,-8840.7631391,0.0002204,2]
[395098828,1764425445155,-150.0,0.0002204,2]
[395098829,1764425445165,-3730.51821003,0.0002204,2]
[395098830,1764425445174,-151.0,0.0002204,2]
[395098831,1764425445183,-151.0,0.0002204,2]
[395098832,1764425445193,-151.0,0.0002204,2]
[395098833,1764425445203,-154.345669,0.0002204,2]
[395098834,1764425445212,-151.0,0.0002204,2]
[395098835,1764425445222,-151.0,0.0002204,2]
[395098836,1764425445231,-594.448727,0.0002204,2]
[395098837,1764425445241,-594.448727,0.0002204,2]
[395098838,1764425445250,-151.0,0.0002204,2]
[395098839,1764425445260,-338.036601,0.0002204,2]
[395098841,1764425445269,-310.070556,0.0002204,2]
[395098843,1764425445279,-338.036601,0.0002204,2]
[395098844,1764425445289,-310.070556,0.0002204,2]
[395098845,1764425445298,-310.070556,0.0002204,2]
[395098846,1764425445308,-338.036601,0.0002204,2]
[395098847,1764425445317,-338.036601,0.0002204,2]
[395098848,1764425445326,-310.070556,0.0002204,2]
[395098849,1764425445335,-151.0,0.0002204,2]
[395098850,1764425445345,-151.0,0.0002204,2]
[395098851,1764425445354,-151.0,0.0002204,2]
[395098852,1764425445364,-151.0,0.0002204,2]
[395098853,1764425445373,-151.0,0.0002204,2]
[395098854,1764425445382,-151.0,0.0002204,2]
[395098855,1764425445392,-450.347705,0.0002204,2]
[395098856,1764425445401,-450.347705,0.0002204,2]
[395098857,1764425445410,-151.0,0.0002204,2]
[395098858,1764425445420,-450.347705,0.0002204,2]
[395098859,1764425445430,-151.0,0.0002204,2]
[395098860,1764425445439,-450.347705,0.0002204,2]
[395098861,1764425445449,-247.015437,0.0002204,2]
[395098862,1764425445459,-151.0,0.0002204,2]
[395098863,1764425445468,-151.0,0.0002204,2]
[395098864,1764425445478,-151.0,0.0002204,2]
[395098865,1764425445487,-151.0,0.0002204,2]
[395098866,1764425445497,-428.473139,0.0002204,2]
[395098867,1764425445507,-428.473139,0.0002204,2]
[395098868,1764425445516,-428.473139,0.0002204,2]
[395098869,1764425445529,-428.473139,0.0002204,2]
[395098870,1764425445544,-3000.0,0.0002206,7]
[395098871,1764425445553,-2500.0,0.0002206,7]
[395098872,1764425445563,-936.56171995,0.00022076,2]
[395098873,1764425445574,-150.0,0.00022142,2]
[395098874,1764425445583,-150.0,0.00022142,2]
[395098875,1764425445592,-150.0,0.00022142,2]
[395098876,1764425445601,-150.0,0.00022142,2]
[395098877,1764425445610,-150.0,0.00022142,2]
[395098878,1764425445619,-150.0,0.00022142,2]
[395098879,1764425445628,-150.0,0.00022142,2]
[395098880,1764425445637,-150.0,0.00022142,2]
[395098881,1764425445646,-150.0,0.00022142,2]
[395098882,1764425445656,-150.0,0.00022142,2]
[395098883,1764425445665,-150.0,0.00022142,2]
[395098884,1764425445674,-150.0,0.00022142,2]
[395098885,1764425445683,-150.0,0.00022142,2]
[395098886,1764425445692,-328.17073037,0.00022347,16]
[395098887,1764425445701,-150.0,0.00022347,4]
[395098888,1764425445711,-187.78006525,0.00022466,2]
[395098889,1764425445721,-304.0,0.000225,2]
[395098890,1764425445730,-839.0,0.000225,2]
[395098891,1764425445739,-354.0,0.000225,2]
[395098892,1764425445749,-158.99150689,0.00022544,2]
[395098893,1764425445758,-150.0,0.00022553,4]
[395098894,1764425445768,-150.0,0.00022553,4]
[395098895,1764425445777,-150.0,0.00022553,4]
[395098896,1764425445786,-500.0,0.00022575,2]
[395098897,1764425445796,-10082.33670861,0.00022588,2]
[395098898,1764425445897,-413.7028584,0.00022658,2]
[395098899,1764425445907,-150.0,0.00022758,4]
[395098900,1764425445916,-150.0,0.00022758,4]
[395098901,1764425445925,-150.0,0.00022758,4]
[395098902,1764425445935,-500.0,0.00022838,2]
[395098903,1764425445944,-500.0,0.00022857,2]
[395098904,1764425445953,-970.0,0.000229,2]
[395098905,1764425445962,-972.337342,0.000229,2]
[395098906,1764425445972,-972.337342,0.000229,2]
[395098907,1764425445981,-972.337342,0.000229,2]
[395098908,1764425445990,-972.337342,0.000229,2]
[395098909,1764425446000,-159.007814,0.000229,2]
[395098910,1764425446009,-151.0,0.000229,2]
[395098911,1764425446018,-1462.744042,0.000229,2]
[395098912,1764425446027,-151.0,0.000229,2]
[395098913,1764425446036,-379.439101,0.000229,2]
[395098914,1764425446046,-1462.744042,0.000229,2]
[395098915,1764425446055,-151.0,0.000229,2]
[395098916,1764425446065,-379.439101,0.000229,2]
[395098917,1764425446075,-1462.744042,0.000229,2]
[395098918,1764425446084,-379.439101,0.000229,2]
[395098919,1764425446094,-1462.744042,0.000229,2]
[395098920,1764425446103,-379.439101,0.000229,2]
[395098921,1764425446114,-151.0,0.000229,2]
[395098922,1764425446124,-151.0,0.000229,2]
[395098923,1764425446134,-151.0,0.000229,2]
[395098924,1764425446144,-404.303745,0.000229,2]
[395098925,1764425446154,-404.303745,0.000229,2]
[395098926,1764425446163,-404.303745,0.000229,2]
[395098927,1764425446173,-151.0,0.000229,2]
[395098928,1764425446182,-404.303745,0.000229,2]
[395098929,1764425446192,-151.0,0.000229,2]
[395098930,1764425446201,-289.530181,0.000229,2]
[395098931,1764425446210,-289.530181,0.000229,2]
[395098932,1764425446219,-289.530181,0.000229,2]
[395098933,1764425446229,-289.530181,0.000229,2]
[395098934,1764425446238,-4148.89158,0.000229,2]
[395098935,1764425446247,-4148.89158,0.000229,2]
[395098936,1764425446257,-4148.89158,0.000229,2]
[395098937,1764425446266,-151.0,0.000229,2]
[395098938,1764425446275,-4148.89158,0.000229,2]
[395098939,1764425446285,-151.0,0.000229,2]
[395098940,1764425446294,-158.350754,0.000229,2]
[395098941,1764425446304,-158.350754,0.000229,2]
[395098942,1764425446313,-158.350754,0.000229,2]
[395098943,1764425446323,-480.640191,0.000229,2]
[395098944,1764425446332,-183.772048,0.000229,2]
[395098945,1764425446341,-158.350754,0.000229,2]
[395098946,1764425446350,-480.640191,0.000229,2]
[395098947,1764425446359,-183.772048,0.000229,2]
[395098948,1764425446368,-480.640191,0.000229,2]
[395098949,1764425446377,-183.772048,0.000229,2]
[395098950,1764425446387,-480.640191,0.000229,2]
[395098951,1764425446398,-183.772048,0.000229,2]
[395098952,1764425446408,-1921.478575,0.000229,2]
[395098953,1764425446417,-151.0,0.000229,2]
[395098954,1764425446426,-151.0,0.000229,2]
[395098955,1764425446436,-1921.478575,0.000229,2]
[395098956,1764425446445,-255.890202,0.000229,2]
[395098957,1764425446455,-1921.478575,0.000229,2]
[395098958,1764425446465,-1921.478575,0.000229,2]
[395098959,1764425446474,-370.130436,0.000229,2]
[395098960,1764425446483,-370.130436,0.000229,2]
[395098961,1764425446492,-370.130436,0.000229,2]
[395098962,1764425446501,-1043.931687,0.000229,2]
[395098963,1764425446512,-197.836083,0.000229,2]
[395098964,1764425446522,-370.130436,0.000229,2]
[395098965,1764425446535,-151.0,0.000229,2]
[395098966,1764425446544,-197.836083,0.000229,2]
[395098967,1764425446554,-1043.931687,0.000229,2]
[395098968,1764425446563,-197.836083,0.000229,2]
[395098969,1764425446572,-1043.931687,0.000229,2]
[395098970,1764425446582,-151.0,0.000229,2]
[395098971,1764425446591,-197.836083,0.000229,2]
[395098972,1764425446600,-151.0,0.000229,2]
[395098973,1764425446609,-1043.931687,0.000229,2]
[395098974,1764425446618,-427.184837,0.000229,2]
[395098975,1764425446627,-427.184837,0.000229,2]
[395098976,1764425446636,-814.959456,0.000229,2]
[395098977,1764425446645,-427.184837,0.000229,2]
[395098978,1764425446655,-814.959456,0.000229,2]
[395098979,1764425446663,-427.184837,0.000229,2]
[395098980,1764425446673,-814.959456,0.000229,2]
[395098981,1764425446682,-814.959456,0.000229,2]
[395098982,1764425446691,-151.0,0.000229,2]
[395098983,1764425446700,-151.0,0.000229,2]
[395098984,1764425446709,-1586.251219,0.000229,2]
[395098985,1764425446718,-1586.251219,0.000229,2]
[395098986,1764425446727,-1586.251219,0.000229,2]
[395098987,1764425446737,-1586.251219,0.000229,2]
[395098988,1764425446746,-338.910976,0.000229,2]
[395098989,1764425446755,-338.910976,0.000229,2]
[395098990,1764425446764,-151.0,0.000229,2]
[395098991,1764425446774,-338.910976,0.000229,2]
[395098992,1764425446783,-151.0,0.000229,2]
[395098993,1764425446792,-338.910976,0.000229,2]
[395098994,1764425446801,-151.0,0.000229,2]
[395098995,1764425446811,-151.0,0.000229,2]
[395098996,1764425446822,-151.0,0.000229,2]
[395098997,1764425446832,-151.0,0.000229,2]
[395098998,1764425446841,-150.0,0.00022963,4]
[395098999,1764425446853,-150.0,0.00022963,4]
[395099000,1764425446864,-150.0,0.00022963,4]
[395099001,1764425446873,-150.0,0.00022963,4]
[395099002,1764425446883,-500.0,0.00022969,2]
[395099003,1764425446892,-400.0,0.00023,2]
[395099004,1764425446901,-194.72792766,0.00023014,2]
[395099005,1764425446910,-359.76179104,0.00023034,2]
[395099006,1764425446918,-320.74051982,0.00023034,2]
[395099007,1764425446926,-328.17073037,0.00023035,18]
[395099008,1764425446936,-3000.0,0.00023156,7]
[395099009,1764425446949,-2500.0,0.00023156,7]
[395099010,1764425446958,-150.0,0.00023168,4]
[395099011,1764425446967,-289.29220146,0.00023269,7]
[395099012,1764425446977,-500.0,0.00023289,2]
[395099013,1764425446986,-150.0,0.00023373,4]
[395099014,1764425446996,-150.0,0.00023373,4]
[395099015,1764425447006,-150.0,0.00023373,4]
[395099016,1764425447015,-150.0,0.00023373,4]
[395099017,1764425447025,-150.0,0.00023373,4]
[395099018,1764425447034,-150.0,0.00023373,4]
[395099019,1764425447043,-1321.0,0.00023463,2]
[395099020,1764425447052,-610.0,0.00023463,2]
[395099021,1764425447062,-1603.0,0.00023463,2]
[395099022,1764425447071,-1258.0,0.00023463,2]
[395099023,1764425447080,-640.0,0.00023463,2]
[395099024,1764425447090,-1193.0,0.00023477,2]
[395099025,1764425447099,-909.0,0.00023477,2]
[395099026,1764425447109,-1652.749,0.00023477,2]
[395099027,1764425447118,-491.79674248,0.00023543,7]
[395099028,1764425447127,-707.028212,0.00023552,2]
[395099029,1764425447136,-201.93286099,0.00023562,2]
[395099030,1764425447145,-150.0,0.00023578,4]
[395099031,1764425447155,-500.0,0.00023654,2]
[395099032,1764425447165,-413.7028584,0.00023679,2]
[395099033,1764425447174,-328.17073037,0.00023724,19]
[395099034,1764425447184,-150.0,0.00023783,4]
[395099035,1764425447194,-150.0,0.00023783,4]
[395099036,1764425447204,-150.0,0.00023783,4]
[395099037,1764425447215,-150.0,0.00023783,4]
[395099038,1764425447225,-279.53315,0.00023783,2]
[395099039,1764425447235,-279.53315,0.00023783,2]
[395099040,1764425447244,-151.0,0.00023783,2]
[395099041,1764425447254,-279.53315,0.00023783,2]
[395099042,1764425447263,-151.0,0.00023783,2]
[395099043,1764425447273,-166.095137,0.00023783,2]
[395099044,1764425447282,-279.53315,0.00023783,2]
[395099045,1764425447291,-151.0,0.00023783,2]
[395099046,1764425447301,-151.0,0.00023783,2]
[395099047,1764425447311,-166.095137,0.00023783,2]
[395099048,1764425447321,-166.095137,0.00023783,2]
[395099049,1764425447330,-363.118172,0.00023783,2]
[395099050,1764425447339,-166.095137,0.00023783,2]
[395099051,1764425447348,-151.0,0.00023783,2]
[395099052,1764425447358,-363.118172,0.00023783,2]
[395099053,1764425447367,-156.0766,0.00023783,2]
[395099054,1764425447376,-363.118172,0.00023783,2]
[395099055,1764425447386,-340.295419,0.00023783,2]
[395099056,1764425447395,-363.118172,0.00023783,2]
[395099057,1764425447405,-444.344971,0.00023783,2]
[395099058,1764425447414,-340.295419,0.00023783,2]
[395099059,1764425447423,-444.344971,0.00023783,2]
[395099060,1764425447432,-340.295419,0.00023783,2]
[395099061,1764425447443,-444.344971,0.00023783,2]
[395099062,1764425447455,-1010.294963,0.00023783,2]
[395099063,1764425447464,-340.295419,0.00023783,2]
[395099064,1764425447474,-444.344971,0.00023783,2]
[395099065,1764425447483,-1010.294963,0.00023783,2]
[395099066,1764425447493,-2319.116775,0.00023783,2]
[395099067,1764425447502,-1010.294963,0.00023783,2]
[395099068,1764425447511,-2319.116775,0.00023783,2]
[395099069,1764425447520,-1010.294963,0.00023783,2]
[395099070,1764425447531,-2319.116775,0.00023783,2]
[395099071,1764425447541,-151.0,0.00023783,2]
[395099072,1764425447550,-2319.116775,0.00023783,2]
[395099073,1764425447559,-151.0,0.00023783,2]
[395099074,1764425447570,-151.0,0.00023783,2]
[395099075,1764425447579,-654.42245,0.00023783,2]
[395099076,1764425447588,-654.42245,0.00023783,2]
[395099077,1764425447598,-151.0,0.00023783,2]
[395099078,1764425447609,-151.0,0.00023783,2]
[395099079,1764425447619,-151.0,0.00023783,2]
[395099080,1764425447628,-151.0,0.00023783,2]
[395099081,1764425447637,-654.42245,0.00023783,2]
[395099082,1764425447646,-151.0,0.00023783,2]
[395099083,1764425447656,-654.42245,0.00023783,2]
[395099084,1764425447665,-151.0,0.00023783,2]
[395099085,1764425447675,-151.0,0.00023783,2]
[395099086,1764425447684,-151.0,0.00023783,2]
[395099087,1764425447693,-269.2477,0.00023783,2]
[395099088,1764425447702,-269.2477,0.00023783,2]
[395099089,1764425447712,-269.2477,0.00023783,2]
[395099090,1764425447721,-269.2477,0.00023783,2]
[395099091,1764425447730,-500.0,0.000238,7]
[395099092,1764425447739,-500.0,0.000238,7]
[395099093,1764425447748,-500.0,0.000238,7]
[395099094,1764425447758,-359.06,0.000238,7]
[395099095,1764425447767,-409.83061873,0.00023816,7]
[395099096,1764425447777,-500.0,0.000239,2]
[395099097,1764425447786,-150.0,0.00023988,4]
[395099098,1764425447795,-150.0,0.00023988,4]
[395099099,1764425447804,-150.0,0.00023988,4]
[395099100,1764425447816,-238.53,0.00023997,2]
[395099101,1764425447828,-1000.0,0.00024,24]
[395099102,1764425447837,-300.0,0.00024014,2]
[395099103,1764425447847,-500.0,0.00024078,2]
[395099104,1764425447859,-22036.0,0.000241,2]
[395099105,1764425447870,-300.0,0.00024106,2]
[395099106,1764425447880,-209.40437684,0.0002411,2]
[395099107,1764425447891,-300.0,0.00024133,2]
[395099108,1764425447901,-190.08337603,0.00024135,2]
[395099109,1764425447911,-500.0,0.00024138,2]
[395099110,1764425447924,-500.0,0.00024142,2]
[395099111,1764425447934,-324.5,0.0002415,15]
[395099112,1764425447944,-150.0,0.00024193,4]
[395099113,1764425447954,-150.0,0.00024193,4]
[395099114,1764425447964,-150.0,0.00024193,4]
[395099115,1764425447974,-421.8,0.00024206,2]
[395099116,1764425447984,-327.86449498,0.00024227,7]
[395099117,1764425447994,-300.0,0.00024234,2]
[395099118,1764425448004,-151.0,0.00024249,7]
[395099119,1764425448013,-3000.0,0.00024252,7]
[395099120,1764425448023,-2500.0,0.00024252,7]
[395099121,1764425448038,-500.0,0.0002428,2]
[395099122,1764425448048,-300.0,0.00024283,2]
[395099123,1764425448058,-1496.79096699,0.00024352,2]
[395099124,1764425448068,-150.0,0.00024398,4]
[395099125,1764425448081,-373.07297731,0.00024403,2]
[395099126,1764425448090,-332.60791905,0.00024403,2]
[395099127,1764425448101,-157.59909758,0.00024406,2]
[395099128,1764425448111,-1500.45769828,0.0002441,2]
[395099129,1764425448122,-328.17073037,0.00024413,21]
[395099130,1764425448132,-10082.33670861,0.00024416,2]
[395099131,1764425448143,-300.0,0.00024443,2]
[395099132,1764425448153,-500.0,0.00024446,2]
[395099133,1764425448164,-1496.79096699,0.00024449,2]
[395099134,1764425448174,-300.0,0.00024496,2]
[395099135,1764425448184,-229.15,0.00024503,2]
[395099136,1764425448194,-300.0,0.00024521,2]
[395099137,1764425448205,-151.0,0.00024522,2]
[395099138,1764425448215,-151.0,0.00024522,2]
[395099139,1764425448225,-151.0,0.00024522,2]
[395099140,1764425448235,-151.0,0.00024522,2]
[395099141,1764425448245,-403.041768,0.00024522,2]
[395099142,1764425448255,-690.579741,0.00024522,2]
[395099143,1764425448266,-403.041768,0.00024522,2]
[395099144,1764425448277,-690.579741,0.00024522,2]
[395099145,1764425448287,-403.041768,0.00024522,2]
[395099146,1764425448298,-690.579741,0.00024522,2]
[395099147,1764425448308,-403.041768,0.00024522,2]
[395099148,1764425448320,-690.579741,0.00024522,2]
[395099149,1764425448330,-330.357343,0.00024522,2]
[395099150,1764425448340,-330.357343,0.00024522,2]
[395099151,1764425448350,-330.357343,0.00024522,2]
[395099152,1764425448361,-330.357343,0.00024522,2]
[395099153,1764425448371,-578.874717,0.00024522,2]
[395099154,1764425448380,-578.874717,0.00024522,2]
[395099155,1764425448390,-578.874717,0.00024522,2]
[395099156,1764425448405,-578.874717,0.00024522,2]
[395099157,1764425448415,-235.531703,0.00024522,2]
[395099158,1764425448425,-235.531703,0.00024522,2]
[395099159,1764425448436,-151.0,0.00024522,2]
[395099160,1764425448447,-151.0,0.00024522,2]
[395099161,1764425448458,-168.409941,0.00024522,2]
[395099162,1764425448469,-632.058739,0.00024522,2]
[395099163,1764425448479,-168.409941,0.00024522,2]
[395099164,1764425448490,-151.0,0.00024522,2]
[395099165,1764425448500,-632.058739,0.00024522,2]
[395099166,1764425448510,-168.409941,0.00024522,2]
[395099167,1764425448521,-151.0,0.00024522,2]
[395099168,1764425448533,-632.058739,0.00024522,2]
[395099169,1764425448544,-168.409941,0.00024522,2]
[395099170,1764425448555,-151.0,0.00024522,2]
[395099171,1764425448565,-632.058739,0.00024522,2]
[395099172,1764425448576,-151.0,0.00024522,2]
[395099173,1764425448587,-151.0,0.00024522,2]
[395099174,1764425448597,-151.0,0.00024522,2]
[395099175,1764425448607,-151.0,0.00024522,2]
[395099176,1764425448617,-151.0,0.00024522,2]
[395099177,1764425448627,-151.0,0.00024522,2]
[395099178,1764425448637,-295.914944,0.00024522,2]
[395099179,1764425448648,-295.914944,0.00024522,2]
[395099180,1764425448658,-295.914944,0.00024522,2]
[395099181,1764425448668,-295.914944,0.00024522,2]
[395099182,1764425448678,-241.89032763,0.00024539,2]
[395099183,1764425448688,-1286.03783,0.0002454,2]
[395099184,1764425448699,-300.0,0.00024576,2]
[395099185,1764425448709,-500.0,0.000246,2]